bitfinex/quotes_SOLUSD_20241009
["timestamp","ask_amount","ask_price","bid_price","bid_amount"]
[1728473357137,6.5259,142.9,142.8,15.24497157]
[1728473357138,23.776884,142.89,142.8,15.24497157]
[1728473364162,23.776884,142.89,142.81,14.63214205]
[1728473366964,3.67531149,142.88,142.81,14.63214205]
[1728473367358,3.67531149,142.87,142.81,14.63214205]
[1728473367559,3.67531149,142.87,142.81,1.39993037]
[1728473367759,3.67531149,142.88,142.81,1.39993037]
[1728473367964,3.67531149,142.88,142.8,15.24497157]
[1728473369865,27.45219549,142.89,142.8,15.24497157]
[1728473370252,23.776884,142.89,142.8,15.24497157]
[1728473372348,23.776884,142.89,142.81,1.3998761]
[1728473373182,23.776884,142.89,142.8,15.24497157]
[1728473380581,16.2062,142.88,142.77,76.1131]
[1728473380760,19.88151149,142.88,142.78,7.55621778]
[1728473381566,3.67531149,142.87,142.78,7.55621778]
[1728473382651,3.67531149,142.87,142.78,0.25098]
[1728473392482,23.776884,142.87,142.78,0.25098]
[1728473393684,27.44974153,142.87,142.78,0.25098]
[1728473393869,27.44974153,142.87,142.78,1.65107484]
[1728473396570,23.776884,142.87,142.78,1.65107484]
[1728473398663,27.44901858,142.87,142.78,1.65107484]
[1728473399680,27.44901858,142.87,142.78,0.25098]
[1728473400291,3.67213458,142.87,142.79,14.63231019]
[1728473400594,3.67213458,142.87,142.8,1.4000302]
[1728473400979,3.67213458,142.87,142.81,1.39999508]
[1728473401180,3.67213458,142.87,142.79,83.23221168]
[1728473402489,3.67213458,142.87,142.8,1.39998365]
[1728473402687,3.67213458,142.87,142.8,0.12549]
[1728473404302,19.87833458,142.88,142.8,0.12549]
[1728473404596,19.87833458,142.88,142.78,0.12549]
[1728473404803,19.87833458,142.88,142.79,0.25098]
[1728473405100,27.44901858,142.87,142.77,99.16835869]
[1728473405293,6.463,142.86,142.77,99.16835869]
[1728473408699,6.463,142.86,142.78,1.40016036]
[1728473412603,6.463,142.86,142.77,99.16835869]
[1728473412789,6.463,142.86,142.78,1.4001607]
[1728473414212,6.463,142.86,142.77,79.82304701]
[1728473414386,15.3747,142.84,142.76,15.0478]
[1728473414591,15.3747,142.84,142.73,78.91511643]
[1728473414788,23.902374,142.83,142.73,22.14732811]
[1728473415092,23.902374,142.83,142.74,1.40059741]
[1728473415298,23.776884,142.83,142.75,13.23221168]
[1728473415498,23.776884,142.83,142.76,1.40040037]
[1728473417201,15.3747,142.84,142.76,1.40040037]
[1728473417383,15.3747,142.84,142.77,13.23221168]
[1728473417593,15.3747,142.84,142.78,1.40026917]
[1728473418200,6.463,142.86,142.79,13.23221168]
[1728473418509,6.463,142.86,142.8,1.40004346]
[1728473419498,6.463,142.86,142.8,0.25098]
[1728473428404,6.463,142.86,142.79,13.23221168]
[1728473432798,6.463,142.86,142.78,0.25098]
[1728473432999,6.463,142.86,142.78,13.48319168]
[1728473433400,6.463,142.86,142.78,13.23221168]
[1728473439707,10.13513458,142.86,142.78,13.23221168]
[1728473444331,3.67213458,142.85,142.78,13.23221168]
[1728473444552,10.13513458,142.86,142.8,13.23221168]
[1728473444717,10.13513458,142.86,142.81,1.40002259]
[1728473446640,10.13513458,142.86,142.8,13.23221168]
[1728473448836,10.13513458,142.86,142.81,1.40002611]
[1728473453138,3.67213458,142.86,142.81,1.40002611]
[1728473453337,3.67213458,142.87,142.81,1.40002611]
[1728473453927,3.67213458,142.87,142.8,83.35770168]
[1728473453928,3.67213458,142.87,142.82,83.48319168]
[1728473455030,3.67213458,142.88,142.82,83.48319168]
[1728473461436,21.3244,142.9,142.82,83.48319168]
[1728473461649,24.99653458,142.9,142.82,83.48319168]
[1728473462151,21.3244,142.9,142.84,13.23221168]
[1728473462448,21.3244,142.9,142.85,1.39959642]
[1728473463952,21.3244,142.9,142.86,13.23221168]
[1728473464156,6.098,142.9,142.87,1.39951534]
[1728473464341,3.67213458,142.93,142.87,1.39951534]
[1728473464652,3.67213458,142.92,142.87,1.39951534]
[1728473464861,3.67213458,142.93,142.87,1.39951534]
[1728473466641,21.6535,142.94,142.88,13.23221168]
[1728473466951,21.6535,142.94,142.89,1.39923928]
[1728473470257,21.6535,142.94,142.88,13.23221168]
[1728473470555,21.6535,142.94,142.87,0.25098]
[1728473473961,21.6535,142.94,142.87,1.65022458]
[1728473474347,21.6535,142.94,142.87,0.25098]
[1728473475036,21.6535,142.94,142.87,1.65022083]
[1728473475436,21.6535,142.94,142.87,0.25098]
[1728473482864,21.6535,142.94,142.91,6.9971]
[1728473486358,28.6494,142.94,142.9,24.4915]
[1728473486666,6.9967,142.93,142.9,17.4938]
[1728473486845,23.776884,142.93,142.88,17.4971]
[1728473487044,6.9974,142.92,142.88,24.4958]
[1728473490959,23.776884,142.93,142.85,17.4998]
[1728473491145,6.9992,142.88,142.84,7.0007]
[1728473491952,6.9994,142.87,142.83,7.0012]
[1728473494349,6.9998,142.86,142.82,17.5036]
[1728473494668,6.9998,142.86,142.82,24.5052]
[1728473497774,15.3295,142.88,142.84,17.502]
[1728473497969,15.3295,142.88,142.86,6.9997]
[1728473498348,15.3295,142.88,142.85,7.0001]
[1728473500577,23.776884,142.87,142.83,7.0011]
[1728473500748,30.776484,142.87,142.83,7.0011]
[1728473502048,23.776884,142.87,142.83,7.0011]
[1728473502255,6.9998,142.86,142.83,7.0011]
[1728473502457,6.9998,142.86,142.82,7.0017]
[1728473502656,7.0006,142.85,142.81,24.507]
[1728473503551,7.0006,142.85,142.82,7.0017]
[1728473503873,13.1488,142.86,142.82,7.0017]
[1728473504959,6.1488,142.86,142.83,7.0012]
[1728473505165,6.1488,142.86,142.84,7.0007]
[1728473505876,30.776284,142.87,142.84,7.0007]
[1728473506279,30.776284,142.87,142.83,24.5041]
[1728473514659,23.776884,142.87,142.82,7.0016]
[1728473514881,23.776884,142.87,142.8,17.506]
[1728473515082,7.0006,142.85,142.82,7.0017]
[1728473515790,23.776884,142.87,142.82,7.0017]
[1728473515959,30.776384,142.87,142.83,7.001]
[1728473516684,6.5176,142.89,142.86,6.9998]
[1728473517797,6.5176,142.89,142.87,6.9992]
[1728473518167,22.8103,142.91,142.87,6.9992]
[1728473521104,15.8128,142.91,142.87,18.89796505]
[1728473521275,12.997,142.93,142.88,6.9984]
[1728473522098,12.997,142.93,142.87,18.89796505]
[1728473522390,12.997,142.93,142.89,6.9983]
[1728473525199,6.9969,142.92,142.88,6.9987]
[1728473525885,6.9969,142.92,142.89,6.9983]
[1728473526088,7.7949722,142.93,142.89,6.9983]
[1728473531206,6.997,142.92,142.88,6.9987]
[1728473531582,6.997,142.92,142.87,17.4982]
[1728473531583,6.9974,142.91,142.87,17.4982]
[1728473531786,6.9974,142.91,142.87,24.4974]
[1728473535506,6.998,142.9,142.86,6.9997]
[1728473537292,6.998,142.9,142.86,8.39949566]
[1728473539102,6.998,142.9,142.86,6.9997]
[1728473539608,6.998,142.9,142.86,8.39949477]
[1728473540009,6.998,142.9,142.85,17.5008]
[1728473540195,6.9974,142.91,142.87,24.4974]
[1728473541104,6.9974,142.91,142.87,17.4982]
[1728473541290,6.9974,142.91,142.88,6.9988]
[1728473543908,6.9974,142.91,142.87,24.4973]
[1728473546122,6.9974,142.91,142.88,1.39965406]
[1728473546293,6.9969,142.92,142.88,8.39845406]
[1728473547192,6.9969,142.92,142.87,24.4973]
[1728473549017,6.9969,142.92,142.88,1.39958236]
[1728473550515,6.9969,142.92,142.87,24.4973]
[1728473550717,6.9975,142.91,142.87,24.4973]
[1728473550912,6.9982,142.9,142.85,7.0002]
[1728473559025,6.9982,142.9,142.86,6.9997]
[1728473560236,6.9983,142.89,142.84,17.5009]
[1728473561806,6.9983,142.89,142.85,7.0002]
[1728473565320,6.998,142.9,142.86,8.39940568]
[1728473566335,6.998,142.9,142.87,1.39966833]
[1728473566503,6.998,142.9,142.86,6.9996]
[1728473580716,0.7983722,142.93,142.87,1.3996949]
[1728473580913,6.9966,142.93,142.88,6.9985]
[1728473581134,6.9966,142.93,142.88,8.39801608]
[1728473581347,10.66763458,142.95,142.9,6.9974]
[1728473581541,6.995,142.96,142.91,6.9969]
[1728473582746,6.9954,142.95,142.9,6.9977]
[1728473583942,24.027864,142.97,142.89,24.4941]
[1728473584122,6.9969,142.92,142.89,17.4958]
[1728473584652,6.9969,142.92,142.87,6.9991]
[1728473584850,6.9974,142.91,142.87,6.9991]
[1728473585032,6.997,142.92,142.87,6.9991]
[1728473585826,6.997,142.92,142.86,17.4985]
[1728473586045,6.997,142.92,142.88,6.9986]
[1728473592635,6.47239,142.94,142.84,28.93531168]
[1728473592835,30.773484,142.93,142.89,6.9983]
[1728473594848,6.9966,142.93,142.89,6.9983]
[1728473595156,13.343,142.94,142.9,6.9978]
[1728473595455,6.9961,142.94,142.9,6.9978]
[1728473598942,6.9964,142.93,142.9,6.9978]
[1728473602864,6.9972,142.92,142.88,24.4955]
[1728473606867,6.9972,142.92,142.89,6.9983]
[1728473607266,30.772984,142.94,142.9,6.9977]
[1728473607569,22.1283,142.95,142.91,8.39674926]
[1728473607871,6.9955,142.95,142.91,8.39658201]
[1728473610166,6.9955,142.95,142.91,6.9973]
[1728473624558,6.996,142.94,142.91,6.9973]
[1728473625575,6.996,142.94,142.9,24.492]
[1728473638989,27.44901858,142.96,142.87,6.073]
[1728473640084,3.67213458,142.96,142.9,70.0]
[1728473640286,1.21712555,143.0,142.94,13.23221168]
[1728473640472,4.51511338,143.01,142.95,1.39867203]
[1728473641271,0.8429788,143.01,142.95,1.39867203]
[1728473641786,0.8429788,143.01,142.93,29.29941168]
[1728473642370,0.8429788,143.01,142.94,1.39875795]
[1728473643587,23.776884,143.0,142.91,6.2324]
[1728473644181,23.776884,143.0,142.91,19.46461168]
[1728473644391,23.776884,143.0,142.92,1.39892234]
[1728473645369,23.776884,143.0,142.91,6.2324]
[1728473645571,30.112684,143.0,142.91,6.2324]
[1728473645774,30.112684,143.0,142.9,85.8607]
[1728473646300,0.12549,142.97,142.86,15.4815]
[1728473646592,0.12549,142.95,142.86,15.4815]
[1728473646798,16.5434,142.94,142.86,15.4815]
[1728473647183,23.776884,142.93,142.86,15.4815]
[1728473647389,23.776884,142.93,142.83,28.7545464]
[1728473647892,23.776884,142.93,142.84,71.39960757]
[1728473649377,23.776884,142.93,142.84,70.0]
[1728473650001,23.776884,142.93,142.83,42.11224808]
[1728473650194,23.776884,142.93,142.84,0.25098]
[1728473653899,23.776884,142.93,142.84,1.65059054]
[1728473654103,23.776884,142.93,142.84,71.65059054]
[1728473655698,23.0046,142.94,142.84,71.65059054]
[1728473656003,23.0046,142.94,142.85,13.23221168]
[1728473656310,23.0046,142.94,142.86,1.39945762]
[1728473657291,23.0046,142.94,142.85,13.23221168]
[1728473660411,23.0046,142.94,142.84,70.25098]
[1728473664507,3.67213458,142.98,142.92,13.48319168]
[1728473664807,16.5936788,143.01,142.94,13.23221168]
[1728473665119,16.5936788,143.01,142.95,1.39867622]
[1728473669111,16.5936788,143.01,142.93,70.0]
[1728473671416,16.5936788,143.01,142.93,83.23221168]
[1728473671802,16.5936788,143.01,142.93,13.23221168]
[1728473674913,16.5936788,143.01,142.92,0.25098]
[1728473675220,23.776884,143.0,142.91,70.0]
[1728473676897,23.776884,143.0,142.92,13.23221168]
[1728473678810,23.776884,143.0,142.91,70.0]
[1728473679013,23.776884,143.0,142.91,83.23221168]
[1728473680015,23.776884,143.0,142.92,1.39894928]
[1728473680204,23.776884,143.0,142.91,83.23221168]
[1728473682011,23.776884,143.0,142.92,1.39896872]
[1728473682620,23.776884,143.0,142.91,83.23221168]
[1728473684722,23.776884,143.0,142.92,1.39897194]
[1728473684917,23.776884,143.0,142.91,83.23221168]
[1728473687319,23.776884,143.0,142.92,1.39896993]
[1728473687715,23.776884,143.0,142.91,83.23221168]
[1728473688311,23.776884,143.0,142.91,84.63118171]
[1728473688518,23.776884,143.0,142.91,83.23221168]
[1728473689312,23.776884,143.0,142.92,1.39897029]
[1728473692136,16.5936788,143.01,142.93,1.39897079]
[1728473692817,16.5936788,143.01,142.92,0.25098]
[1728473693406,16.5936788,143.01,142.93,1.39881685]
[1728473695928,16.5936788,143.01,142.92,5.45535869]
[1728473696432,23.776884,143.0,142.92,5.20437869]
[1728473696625,23.776884,143.0,142.91,83.23221168]
[1728473697028,23.776884,143.0,142.92,6.6039859]
[1728473698134,23.776884,143.0,142.92,19.83619758]
[1728473699009,23.776884,143.0,142.92,19.83884458]
[1728473699405,0.8429788,143.01,142.98,13.23221168]
[1728473699639,0.8429788,143.01,142.99,1.39835585]
[1728473701823,0.8429788,143.01,142.97,1.39846877]
[1728473703731,0.8429788,143.01,142.93,70.0]
[1728473703912,0.8429788,143.01,142.92,16.6587]
[1728473704113,0.8429788,143.01,142.92,19.1019346]
[1728473704516,0.8429788,143.01,142.93,70.0]
[1728473706143,0.8429788,143.01,142.93,0.25098]
[1728473706643,0.8429788,143.01,142.93,0.12549]
[1728473707733,20.25098,142.99,142.87,7.27961478]
[1728473707933,20.25098,142.99,142.86,70.0]
[1728473707934,6.3514,142.97,142.86,70.0]
[1728473708134,23.902374,142.96,142.86,70.0]
[1728473709144,23.902374,142.96,142.87,1.39940293]
[1728473710040,6.3514,142.97,142.86,83.35770168]
[1728473710347,6.3514,142.97,142.87,0.25098]
[1728473711422,6.3514,142.97,142.89,0.25098]
[1728473711622,6.3514,142.97,142.85,24.47031666]
[1728473711623,6.3514,142.97,142.86,90.5142747]
[1728473711926,6.3514,142.97,142.87,0.25098]
[1728473715228,6.3514,142.97,142.87,1.65021435]
[1728473715644,6.3514,142.97,142.86,90.5142747]
[1728473715645,4.51511338,143.01,142.95,13.48319168]
[1728473715849,0.8429788,143.01,142.95,13.48319168]
[1728473716145,0.8429788,143.01,142.94,16.4231]
[1728473716445,0.8429788,143.01,142.95,1.39868996]
[1728473717463,0.8429788,143.01,142.94,16.4231]
[1728473718360,0.8429788,143.01,142.95,14.88188145]
[1728473718541,0.8429788,143.01,142.95,13.48319168]
[1728473718732,0.8429788,143.01,142.96,1.39848598]
[1728473720159,0.8429788,143.01,142.95,13.48319168]
[1728473721354,0.8429788,143.01,142.96,1.39845414]
[1728473721545,0.8429788,143.01,142.91,70.0]
[1728473722836,23.776884,143.0,142.91,70.0]
[1728473725539,0.8429788,143.01,142.92,1.398897]
[1728473726833,0.8429788,143.01,142.94,0.25098]
[1728473727045,0.8429788,143.01,142.96,0.25098]
[1728473727345,0.8429788,143.01,142.97,1.39846397]
[1728473727832,0.8429788,143.01,142.96,0.25098]
[1728473728039,0.8429788,143.01,142.97,70.0]
[1728473728240,0.8429788,143.01,142.98,1.39833376]
[1728473730350,0.8429788,143.01,143.0,0.12549]
[1728473730558,0.8429788,143.01,143.0,1.64904345]
[1728473733155,0.8429788,143.01,143.0,0.25098]
[1728473734652,0.8429788,143.01,142.98,0.12549]
[1728473735943,0.8429788,143.01,142.98,0.25098]
[1728473737053,0.8429788,143.01,142.96,16.126]
[1728473740746,0.8429788,143.01,142.97,1.39845152]
[1728473741139,0.8429788,143.01,142.96,16.126]
[1728473741947,0.8429788,143.01,142.97,0.25098]
[1728473742661,0.8429788,143.01,142.96,16.126]
[1728473743052,0.8429788,143.01,142.98,6.9939]
[1728473743445,0.8429788,143.01,142.99,1.3983888]
[1728473744168,0.8429788,143.01,142.98,6.9939]
[1728473745657,0.29494331,143.01,142.98,6.9939]
[1728473749648,0.29494331,143.01,142.97,24.4803]
[1728473753854,0.29494331,143.01,142.98,1.39845415]
[1728473755277,0.29494331,143.01,142.97,24.4803]
[1728473755451,0.29494331,143.01,142.97,25.87875266]
[1728473758774,0.29494331,143.01,142.97,24.4803]
[1728473761674,0.29494331,143.01,142.98,1.39845383]
[1728473762271,0.29494331,143.01,142.97,24.4803]
[1728473762877,0.29494331,143.01,143.0,6.993]
[1728473769065,0.29494331,143.01,143.0,8.39119413]
[1728473769274,0.29494331,143.01,143.0,6.993]
[1728473769893,0.29494331,143.01,143.0,8.3911953]
[1728473770385,0.29494331,143.01,142.97,0.12549]
[1728473770570,0.29494331,143.01,142.97,7.11959]
[1728473773184,0.29494331,143.01,142.97,0.12549]
[1728473773390,0.29494331,143.01,142.95,6.9952]
[1728473773689,6.993,143.0,142.95,6.9952]
[1728473774470,6.993,143.0,142.94,6.9957]
[1728473777564,0.29494331,143.01,142.93,17.61539]
[1728473777772,6.9938,142.99,142.93,24.4862]
[1728473778287,6.9931,143.0,142.94,8.39464087]
[1728473778596,6.9931,143.0,142.95,6.9953]
[1728473778770,6.9931,143.0,142.96,1.39868027]
[1728473780589,6.9931,143.0,142.95,6.9953]
[1728473780798,6.9931,143.0,142.93,17.4899]
[1728473780991,6.9931,143.0,142.94,6.9956]
[1728473781491,6.9935,142.99,142.93,24.4862]
[1728473781680,0.29494331,143.01,142.93,17.4899]
[1728473781991,6.9941,142.98,142.93,17.4899]
[1728473782575,6.9941,142.98,142.94,1.39889796]
[1728473783989,6.9941,142.98,142.93,17.4899]
[1728473790598,6.9941,142.98,142.94,1.3989151]
[1728473792105,6.9932,143.0,142.94,1.3989151]
[1728473793903,6.9932,143.0,142.95,6.9954]
[1728473794199,6.9932,143.0,142.96,1.39870806]
[1728473794576,6.9932,143.0,142.95,6.9954]
[1728473796903,6.9932,143.0,142.96,1.39870648]
[1728473799681,0.29494331,143.01,142.97,8.39270701]
[1728473800887,0.29494331,143.01,142.97,1.39870701]
[1728473801091,0.29494331,143.01,142.99,6.9934]
[1728473801407,0.29494331,143.01,143.0,1.3983474]
[1728473802485,0.29494331,143.01,142.99,6.9934]
[1728473802891,0.29494331,143.01,142.98,24.4783]
[1728473803195,0.29494331,143.01,142.98,17.4847]
[1728473804403,0.29494331,143.01,142.98,24.4786]
[1728473805982,0.29494331,143.01,142.98,17.4847]
[1728473807504,0.29494331,143.01,142.97,6.9942]
[1728473807799,0.29494331,143.01,142.96,24.482]
[1728473810912,0.29494331,143.01,142.97,8.392774]
[1728473811817,0.29494331,143.01,142.98,6.9938]
[1728473812010,0.29494331,143.01,142.99,1.39837378]
[1728473813218,0.29494331,143.01,143.0,6.993]
[1728473813393,0.29494331,143.01,142.98,17.4845]
[1728473813598,0.29494331,143.01,142.98,24.4782]
[1728473821628,0.29494331,143.01,142.95,17.4874]
[1728473821927,6.9935,142.99,142.94,6.9956]
[1728473822112,16.6233,143.0,142.93,24.4872]
[1728473822433,6.994,142.98,142.93,24.4872]
[1728473823529,6.9936,142.99,142.94,6.9959]
[1728473826132,6.9936,142.99,142.95,1.39876972]
[1728473826316,16.6233,143.0,142.95,18.88726972]
[1728473826627,16.6233,143.0,142.96,6.9945]
[1728473827823,16.6233,143.0,142.97,1.39858637]
[1728473828020,0.29494331,143.01,142.97,1.39858637]
[1728473828333,0.29494331,143.01,142.97,8.39298637]
[1728473828632,7.28744331,143.01,142.96,6.9947]
[1728473828836,0.29494331,143.01,142.97,17.486]
[1728473829526,0.29494331,143.01,142.98,1.39854623]
[1728473831849,7.28744331,143.01,142.97,17.486]
[1728473832137,7.28744331,143.01,142.96,6.9947]
[1728473832354,6.993,143.0,142.95,7.24618]
[1728473832842,6.993,143.0,142.95,6.9952]
[1728473833014,0.29494331,143.01,142.94,17.4886]
[1728473833015,6.9934,142.99,142.94,24.4842]
[1728473833932,0.29494331,143.01,142.95,6.9954]
[1728473833933,6.9931,143.0,142.95,6.9954]
[1728473835112,6.9939,142.98,142.94,24.4844]
[1728473835330,6.9936,142.99,142.94,24.4844]
[1728473837037,6.9931,143.0,142.95,8.39384853]
[1728473839343,6.9931,143.0,142.95,6.9952]
[1728473840449,6.9935,142.99,142.94,17.4886]
[1728473840759,6.9935,142.99,142.94,24.4843]
[1728473842938,6.9935,142.99,142.95,6.9953]
[1728473843447,6.995,142.96,142.92,6.9967]
[1728473843749,6.995,142.96,142.91,24.49]
[1728473844052,6.9947,142.97,142.92,6.9968]
[1728473844351,6.9947,142.97,142.93,1.39893489]
[1728473848563,6.9941,142.98,142.94,6.9958]
[1728473848733,6.9941,142.98,142.95,1.39881579]
[1728473849667,6.9941,142.98,142.96,1.39881925]
[1728473849843,6.9941,142.98,142.94,1.39881945]
[1728473850457,6.9938,142.99,142.94,8.39461945]
[1728473851555,6.9938,142.99,142.94,6.9958]
[1728473852539,6.994,142.98,142.94,6.9958]
[1728473859861,6.994,142.98,142.93,24.4869]
[1728473860668,6.9945,142.97,142.93,24.4869]
[1728473860868,6.9945,142.97,142.93,17.4907]
[1728473864973,6.9945,142.97,142.93,17.4907]
[1728473879674,6.9945,142.97,142.94,5.23347968]
[1728473879877,6.9945,142.97,142.95,5.23347968]
[1728473880063,6.9945,142.97,142.96,5.23347968]
[1728473881054,6.9945,142.97,142.96,5.23456518]
[1728473883068,6.9938,142.99,142.96,5.23456518]
[1728473883275,6.9938,142.99,142.96,6.63327729]
[1728473883476,6.86594331,143.01,142.96,6.63327729]
[1728473883657,6.86594331,143.01,142.97,5.23456518]
[1728473883854,0.29494331,143.01,142.98,6.63310285]
[1728473884260,0.29494331,143.01,142.98,13.62700285]
[1728473884465,0.29494331,143.01,143.0,6.993]
[1728473884761,0.29494331,143.01,143.0,8.64214477]
[1728473886103,0.29494331,143.01,143.0,7.24398]
[1728473887688,0.29494331,143.01,143.0,12.45407125]
[1728473891282,0.29494331,143.01,143.0,12.44746319]
[1728473894685,0.29494331,143.01,143.0,7.24398]
[1728473894996,0.29494331,143.01,143.0,12.44164271]
[1728473897894,0.29494331,143.01,143.0,5.44864271]
[1728473898390,0.29494331,143.01,143.0,5.44505885]
[1728473901910,0.29494331,143.01,143.0,0.25098]
[1728473902493,0.29494331,143.01,143.0,5.44261429]
[1728473903400,0.29494331,143.01,143.0,0.25098]
[1728473906685,0.29494331,143.01,143.0,5.43988338]
[1728473906890,0.29494331,143.01,143.0,0.25098]
[1728473907281,0.29494331,143.01,142.99,70.0]
[1728473907488,0.29494331,143.01,142.97,70.0]
[1728473907799,0.29494331,143.01,142.98,5.19063511]
[1728473909507,0.29494331,143.01,142.99,1.39823999]
[1728473910098,0.29494331,143.01,143.0,0.25098]
[1728473910281,0.29494331,143.01,142.99,70.0]
[1728473911080,0.29494331,143.01,142.98,24.027864]
[1728473911276,0.29494331,143.01,142.98,29.21973793]
[1728473911495,0.29494331,143.01,142.98,5.44285393]
[1728473913605,0.29494331,143.01,142.99,1.3982382]
[1728473913809,0.29494331,143.01,142.99,70.0]
[1728473914707,0.29494331,143.01,142.98,0.25098]
[1728473916300,0.29494331,143.01,142.98,5.44901305]
[1728473916612,0.29494331,143.01,142.98,0.25098]
[1728473916989,0.29494331,143.01,142.95,83.16623821]
[1728473917199,0.29494331,143.01,142.96,5.19844938]
[1728473918194,0.29494331,143.01,142.97,1.398456]
[1728473918907,0.29494331,143.01,142.98,0.25098]
[1728473919810,0.29494331,143.01,142.98,5.45200655]
[1728473920803,0.29494331,143.01,142.99,1.39827398]
[1728473922018,0.29494331,143.01,142.98,5.45200655]
[1728473922497,0.29494331,143.01,142.99,5.20102655]
[1728473923811,0.29494331,143.01,142.97,0.25098]
[1728473924011,0.29494331,143.01,142.98,5.20102655]
[1728473924212,0.29494331,143.01,142.99,6.59941556]
[1728473924407,0.29494331,143.01,142.99,1.39838901]
[1728473924919,0.29494331,143.01,143.0,1.39839053]
[1728473925220,0.29494331,143.01,142.97,5.20966791]
[1728473925416,0.29494331,143.01,142.98,6.60805604]
[1728473925722,0.29494331,143.01,142.99,5.20966791]
[1728473925893,0.29494331,143.01,143.0,1.39839269]
[1728473926100,0.29494331,143.01,143.0,76.60960232]
[1728473926295,0.29494331,143.01,143.0,76.86058232]
[1728473928022,0.29494331,143.01,143.0,76.73509232]
[1728473928807,0.29494331,143.01,143.0,71.52388269]
[1728473929401,0.29494331,143.01,143.0,76.73895181]
[1728473930208,0.29494331,143.01,143.0,71.52388269]
[1728473930412,0.29494331,143.01,143.0,76.74285752]
[1728473932317,0.29494331,143.01,143.0,75.34446483]
[1728473941009,0.29494331,143.01,143.0,100.51920789]
[1728473941205,0.29494331,143.01,143.0,95.30023306]
[1728473941510,22.7721,143.08,143.03,0.25098]
[1728473941711,22.7721,143.08,143.03,1.64877607]
[1728473942018,22.7721,143.08,143.04,5.21792322]
[1728473942219,22.7721,143.08,143.05,1.39780025]
[1728473942428,22.7721,143.08,143.05,6.61572347]
[1728473942610,22.7721,143.08,143.05,1.39780025]
[1728473942810,22.7721,143.08,143.03,0.25098]
[1728473948913,4.51170581,143.15,143.03,0.25098]
[1728473948914,15.8488,143.12,143.03,0.12549]
[1728473949242,15.8488,143.12,143.03,1.39784279]
[1728473950335,23.776884,143.11,143.03,1.39784279]
[1728473952913,23.776884,143.11,143.01,0.25098]
[1728473952914,15.3515,143.09,143.01,0.25098]
[1728473956821,15.3515,143.09,143.01,1.64896892]
[1728473957026,15.3515,143.09,143.02,70.0]
[1728473957229,15.3515,143.09,143.03,1.39786957]
[1728473957428,15.3515,143.09,143.02,70.0]
[1728473958214,15.3515,143.09,143.01,0.25098]
[1728473960229,15.3515,143.09,143.01,1.6489699]
[1728473960433,15.3515,143.09,143.01,0.25098]
[1728473961449,15.3515,143.09,143.01,1.64897082]
[1728473963521,15.3515,143.09,143.01,0.25098]
[1728473963921,15.3515,143.09,143.01,1.64897068]
[1728473966152,1.21587918,143.14,143.05,70.0]
[1728473966440,1.21587918,143.14,143.08,0.25098]
[1728473966441,15.8572,143.13,143.08,0.25098]
[1728473966647,15.8572,143.13,143.07,70.0]
[1728473966947,15.8572,143.13,143.07,0.25098]
[1728473967460,15.8572,143.13,143.06,23.776884]
[1728473967461,15.8572,143.13,143.06,0.25098]
[1728473968844,15.8572,143.13,143.05,0.25098]
[1728473969036,15.8572,143.13,143.04,24.027864]
[1728473969651,15.8572,143.13,143.04,0.25098]
[1728473970360,23.776884,143.12,143.03,70.0]
[1728473971660,23.776884,143.12,143.03,0.25098]
[1728473972561,6.6331,143.11,143.01,70.0]
[1728473972759,0.12549,143.09,142.97,77.27263405]
[1728473972962,0.12549,143.09,142.97,70.0]
[1728473972963,15.0904,143.07,142.97,70.0]
[1728473973457,15.0904,143.07,142.96,15.1228]
[1728473974661,15.0904,143.07,142.97,0.25098]
[1728473977051,23.776884,143.06,142.96,0.25098]
[1728473977268,23.776884,143.06,142.96,0.12549]
[1728473977574,23.776884,143.06,142.95,70.0]
[1728473979353,23.776884,143.06,142.96,1.39853799]
[1728473986581,23.776884,143.06,142.96,0.25098]
[1728473986966,15.0904,143.07,142.96,24.027864]
[1728473987175,15.0904,143.07,142.96,0.25098]
[1728473988279,15.0904,143.07,142.96,1.6493862]